Workbook

Sheet Sheet1
B1: 2026
A2: Row Labels | B2: Cost/Valuation | C2: Accumulated Depreciation and Impairment | D2: Carrying value
A3: Computer Equipment | B3: =H23 -> 12,640,918.59 | C3: =O23+V23 -> (8,828,754.41) | D3: =+B3+C3 -> 3,812,164.18
A4: Furniture and Office Equipment | B4: =H24 -> 9,585,956.57 | C4: =O24+V24 -> (6,595,655.76) | D4: =+B4+C4 -> 2,990,300.82
A5: Machinery And Equipment | B5: 3,999,007.79 | C5: (2,755,543.44) | D5: 1,243,464.34
A6: Transport Assets | B6: 26,652,409.09 | C6: (19,811,876.03) | D6: 6,840,533.06
A7: Leased Assets | B7: 8,617,296.11 | C7: (6,298,735.18) | D7: 2,318,560.93
A8: Community Assets | B8: 140,193,033.25 | C8: (72,785,196.65) | D8: 67,407,836.60
A9: Other Assets | B9: 49,901,275.39 | C9: (33,719,585.38) | D9: 16,181,690.01
A10: Land | B10: 88,051,185.25 | C10: 0 | D10: 88,051,185.25
A11: Work in Progress(WIP) total | B11: 272,099,250.22 | C11: 0 | D11: 272,099,250.22
A12: Electrical Infrastructure | B12: =H32 -> 190,476,893.53 | C12: =O32+V32 -> (93,254,913.86) | D12: 97,221,979.67
A13: Roads Infrastructure | B13: 341,252,994.75 | C13: (173,722,836.17) | D13: 167,530,158.57
A14: Storm Water Infrastructure | B14: 142,886,243.93 | C14: (83,596,983.87) | D14: 59,289,260.05
A15: Sanitation Infrastructure | B15: 346,998,376.26 | C15: (164,311,891.37) | D15: 182,686,484.89
A16: Water Supply Infrastructure | B16: 357,763,190.04 | C16: (207,061,766.49) | D16: 150,701,423.54
A17: Solid Waste Infrastructure | B17: 23,386,030.31 | C17: (23,361,797.47) | D17: 24,232.84
B18: =SUM(B3:B17) -> 2,014,504,061.07 | C18: =SUM(C3:C17) -> -896,105,536.09 | D18: =SUM(D3:D17) -> 1,118,398,524.98
B21: Reconciliarion of Cost 2026 | J21: Reconciliation of the Accumulated Depreciation 2026 | Q21: Reconciliation of the Accumulated Impairment 2026 | X21: Sum of Closing Carrying Amount
A22: Row Labels | B22: Sum of the Opening Cost | C22: Sum of Fair Value Adj | D22: Sum of the Addition | E22: Sum of Transfer | F22: Sum of Cost Adj | G22: Sum of Cost Disposal | H22: Sum of Closing Cost | J22: Sum of Opening Depreciation | K22: Sum of Depreciation | L22: Sum of Depreciation Transfer | M22: Sum of Depreciation Adj | N22: Sum of Depreciation Disposal | O22: Sum of Closing Depreciation | Q22: Sum of Opening Impairment | R22: Sum of Impairment | S22: Sum of Impairment Transfer | T22: Sum of Impairment Adj | U22: Sum of Impairment Disposal | V22: Sum of Closing Impairment | Y22: High Value MV | Z22: Low Value MV
A23: Computer Equipment | B23: 11,325,518.59 | C23: 0 | D23: 1,315,400.00 | E23: 0 | F23: 0 | G23: 0 | H23: =B23+D23 -> 12,640,918.59 | J23: -8,169,540.63 | K23: -657,144.48 | L23: 0 | M23: 0 | O23: =J23+K23 -> -8,826,685.11 | Q23: -2,069.30 | R23: 0 | S23: 0 | T23: 0 | V23: =Q23+R23+S23+T23+U23 -> -2,069.30 | X23: =H23+O23+V23 -> 3,812,164.18
A24: Furniture and Office Equipment | B24: 7,761,347.90 | C24: 0 | D24: 1,824,608.67 | E24: 0 | F24: 0 | G24: 0 | H24: =B24+D24 -> 9,585,956.57 | J24: -6,174,441.48 | K24: -417,851.32 | L24: 0 | M24: 0 | O24: =J24+K24 -> -6,592,292.80 | Q24: -3,362.96 | R24: 0 | S24: 0 | T24: 0 | V24: =Q24+R24+S24+T24+U24 -> -3,362.96 | X24: =H24+O24+V24 -> 2,990,300.82
A25: Machinery And Equipment | B25: 3,613,864.59 | C25: 0 | D25: 385,143.20 | E25: 0 | F25: 0 | G25: 0 | H25: 3,999,007.79 | J25: -2,511,587.41 | K25: -241,340.99 | L25: 0 | M25: 0 | O25: -2,752,928.39 | Q25: -2,615.05 | R25: 0 | S25: 0 | T25: 0 | V25: -2,615.05 | X25: 1,243,464.34
A26: Transport Assets | B26: 26,652,409.09 | C26: 0 | D26: 0 | E26: 0 | F26: 0 | G26: 0 | H26: 26,652,409.09 | J26: -17,970,264.62 | K26: -1,801,751.55 | L26: 0 | M26: 0 | O26: -19,772,016.17 | Q26: -39,859.86 | R26: 0 | S26: 0 | T26: 0 | V26: -39,859.86 | X26: 6,840,533.06 | Y26: 3 | Z26: 36
A27: Leased Assets | B27: 8,617,296.11 | C27: 0 | D27: 0 | E27: 0 | F27: 0 | G27: 0 | H27: 8,617,296.11 | J27: -4,461,723.18 | K27: -1,837,012.00 | L27: 0 | M27: 0 | O27: -6,298,735.18 | Q27: 0 | R27: 0 | S27: 0 | T27: 0 | U27: 0 | V27: 0 | X27: 2,318,560.93
A28: Community Assets | B28: 140,193,033.25 | D28: 0 | H28: 140,193,033.25 | J28: -67,744,502.64 | K28: -2,700,516.54 | O28: -70,445,019.18 | Q28: -2,340,177.48 | V28: -2,340,177.48 | X28: 67,407,836.60
A29: Other Assets | B29: 49,901,275.39 | C29: 0 | D29: 0 | H29: 49,901,275.39 | J29: -33,105,661.45 | K29: -610,635.32 | O29: -33,716,296.78 | Q29: -3,288.60 | V29: -3,288.60 | X29: 16,181,690.01
A30: Land | B30: 88,051,185.25 | C30: 0 | D30: 0 | H30: 88,051,185.25 | J30: 0 | K30: 0 | O30: 0 | Q30: 0 | V30: 0 | X30: 88,051,185.25
A31: Work in Progress(WIP) total | B31: 170,273,398.22 | D31: 101,825,852.00 | H31: 272,099,250.22 | O31: 0 | Q31: 0 | V31: 0 | X31: 272,099,250.22
A32: Electrical Infrastructure | B32: 189,470,493.53 | D32: 1,006,400.00 | H32: 190,476,893.53 | J32: -89,222,624.04 | K32: -3,776,093.84 | O32: -92,998,717.87 | Q32: -256,195.99 | V32: -256,195.99 | X32: 97,221,979.67
A33: Roads Infrastructure | B33: 341,252,994.75 | D33: 0 | H33: 341,252,994.75 | J33: -163,504,794.44 | K33: -10,088,083.31 | O33: -173,592,877.76 | Q33: -129,958.42 | V33: -129,958.42 | X33: 167,530,158.57
A34: Storm Water Infrastructure | B34: 142,886,243.93 | D34: 0 | H34: 142,886,243.93 | J34: -81,951,880.53 | K34: -1,645,103.34 | O34: -83,596,983.87 | Q34: 0 | V34: 0 | X34: 59,289,260.05
A35: Sanitation Infrastructure | B35: 346,719,898.15 | D35: 278,478.11 | H35: 346,998,376.26 | J35: -158,586,964.43 | K35: -5,319,160.35 | O35: -163,906,124.78 | Q35: -405,766.59 | V35: -405,766.59 | X35: 182,686,484.89
A36: Water Supply Infrastructure | B36: 357,511,340.03 | D36: 251,850.01 | H36: 357,763,190.04 | J36: -197,652,879.90 | K36: -4,897,944.19 | O36: -202,550,824.10 | Q36: -4,510,942.39 | V36: -4,510,942.39 | X36: 150,701,423.54
A37: Solid Waste Infrastructure | B37: 23,386,030.31 | D37: 0 | H37: 23,386,030.31 | J37: -23,358,687.49 | K37: -3,109.98 | O37: -23,361,797.47 | Q37: 0 | V37: 0 | X37: 24,232.84
B38: =SUM(B23:B37) -> 1,907,616,329.08 | C38: 0 | D38: 106,887,731.99 | E38: 0 | F38: 0 | G38: 0 | H38: 2,014,504,061.07 | J38: =SUM(J23:J37) -> -854,415,552.25 | K38: -33,995,747.21 | L38: 0 | M38: 0 | N38: 0 | O38: -888,411,299.46 | Q38: =SUM(Q23:Q37) -> -7,694,236.63 | R38: 0 | S38: 0 | T38: 0 | U38: 0 | V38: -7,694,236.63 | W38: 0 | X38: 1,118,398,524.98
